bitfinex-derivatives/quotes_BTCF0:USTF0_20241023
["timestamp","ask_amount","ask_price","bid_price","bid_amount"]
[1729710447185,0.245788,66042.0,66041.0,0.0714393]
[1729710447384,0.17,66042.0,66038.0,0.17]
[1729710447590,0.075792,66039.0,66038.0,0.17]
[1729710448200,0.075792,66039.0,66038.0,0.21472909]
[1729710448401,0.075792,66039.0,66038.0,0.17]
[1729710448893,0.075792,66039.0,66038.0,0.21472909]
[1729710449093,0.075794,66037.0,66036.0,0.04472909]
[1729710449297,0.075798,66034.0,66033.0,0.04472909]
[1729710449487,0.17,66037.0,66031.0,0.04472909]
[1729710449695,0.17,66037.0,66030.0,0.04472909]
[1729710449893,0.075801,66031.0,66030.0,0.04472909]
[1729710450093,0.075795,66036.0,66029.0,0.075803]
[1729710450293,0.0758,66032.0,66031.0,0.04474087]
[1729710450795,0.0758,66032.0,66031.0,0.21474087]
[1729710451200,0.3635,66038.0,66031.0,0.21474087]
[1729710451400,0.3635,66038.0,66036.0,0.17]
[1729710451401,0.196994,66038.0,66036.0,0.17]
[1729710451604,0.075794,66038.0,66037.0,0.075794]
[1729710452103,0.10508612,66038.0,66037.0,0.075794]
[1729710455595,0.075799,66034.0,66033.0,0.075798]
[1729710455795,0.10509112,66034.0,66033.0,0.075798]
[1729710457190,0.075799,66034.0,66033.0,0.075798]
[1729710458002,0.10509263,66034.0,66033.0,0.075798]
[1729710458203,0.075801,66031.0,66030.0,0.02788466]
[1729710458406,0.02929398,66031.0,66029.0,0.075803]
[1729710458602,0.02929398,66031.0,66026.0,0.17]
[1729710458603,0.075807,66027.0,66026.0,0.075805]
[1729710458801,0.10510098,66027.0,66026.0,0.075805]
[1729710459201,0.15474711,66032.0,66026.0,0.18839521]
[1729710459407,0.15474711,66032.0,66028.0,0.07455353]
[1729710459602,0.15474711,66032.0,66029.0,0.07455353]
[1729710459906,0.075802,66030.0,66029.0,0.07455353]
[1729710460106,0.15474711,66032.0,66028.0,0.07455353]
[1729710460307,0.075803,66029.0,66028.0,0.07455353]
[1729710460508,0.075803,66029.0,66028.0,0.15035753]
[1729710460705,0.075803,66029.0,66028.0,0.26221952]
[1729710460908,0.075803,66029.0,66028.0,0.075804]
[1729710461106,0.075803,66029.0,66027.0,0.07455353]
[1729710461107,0.075804,66028.0,66027.0,0.07455353]
[1729710461301,0.075804,66028.0,66027.0,0.18648698]
[1729710461602,0.075804,66028.0,66027.0,0.11195413]
[1729710461807,0.075804,66028.0,66027.0,0.07452476]
[1729710462206,0.075804,66028.0,66026.0,0.02791198]
[1729710462207,0.15474711,66032.0,66026.0,0.10243674]
[1729710462397,0.075806,66027.0,66026.0,0.07452476]
[1729710462603,0.17,66029.0,66024.0,0.00227147]
[1729710462803,0.17,66029.0,66024.0,0.03016709]
[1729710463007,0.075808,66026.0,66024.0,0.10597609]
[1729710463310,0.075808,66025.0,66024.0,0.10597609]
[1729710463512,0.075808,66025.0,66024.0,0.00227147]
[1729710463809,0.075802,66030.0,66024.0,0.00227147]
[1729710464010,0.075801,66032.0,66031.0,0.0758]
[1729710464402,0.075795,66037.0,66036.0,0.075794]
[1729710464602,0.075775,66054.0,66046.0,0.075784]
[1729710464907,0.07578,66050.0,66045.0,0.229543]
[1729710465106,0.17,66049.0,66046.0,0.135326]
[1729710465301,0.17,66049.0,66047.0,0.059543]
[1729710465505,0.17,66049.0,66046.0,0.075783]
[1729710465506,0.24578,66049.0,66048.0,0.059543]
[1729710466316,0.075783,66047.0,66046.0,0.075783]
[1729710467109,0.10507065,66047.0,66046.0,0.075783]
[1729710469609,0.02928765,66047.0,66046.0,0.075783]
[1729710469818,0.075779,66051.0,66050.0,0.075779]
[1729710470015,0.10506524,66051.0,66050.0,0.075779]
[1729710474306,0.075779,66051.0,66050.0,0.075779]
[1729710474511,0.0008,66055.0,66054.0,0.075775]
[1729710474714,0.00227148,66056.0,66054.0,0.075775]
[1729710474715,0.00227148,66056.0,66055.0,0.075773]
[1729710475013,0.00227148,66056.0,66055.0,0.307873]
[1729710475612,0.075761,66066.0,66056.0,0.075772]
[1729710475812,0.075761,66066.0,66065.0,0.07576]
[1729710479416,0.075761,66066.0,66050.0,0.075778]
[1729710479417,0.07577,66060.0,66059.0,0.075767]
[1729710479720,0.07577,66060.0,66055.0,0.4021]
[1729710479721,0.075772,66056.0,66055.0,0.076692]
[1729710479924,0.075772,66056.0,66055.0,0.075772]
[1729710481424,0.075775,66054.0,66053.0,0.02759794]
[1729710481619,0.17,66054.0,66052.0,0.075776]
[1729710481816,0.075776,66053.0,66052.0,0.075776]
[1729710482320,0.075777,66052.0,66051.0,0.00227076]
[1729710482826,0.17,66054.0,66045.0,0.001]
[1729710483021,0.17,66049.0,66043.0,0.17]
[1729710483216,0.17,66046.0,66043.0,0.0268716]
[1729710483524,0.17,66046.0,66041.0,0.075789]
[1729710483525,0.075788,66042.0,66041.0,0.075789]
[1729710483715,0.245788,66042.0,66041.0,0.075789]
[1729710483913,0.075788,66042.0,66041.0,0.075789]
[1729710484321,0.245788,66042.0,66041.0,0.075789]
[1729710485428,0.075792,66040.0,66036.0,0.19736311]
[1729710485617,0.075792,66040.0,66038.0,0.075793]
[1729710485822,0.075792,66040.0,66036.0,0.19736311]
[1729710486124,0.075792,66040.0,66039.0,0.075792]
[1729710488120,0.075793,66039.0,66036.0,0.27315811]
[1729710488323,0.075794,66037.0,66036.0,0.02736311]
[1729710488523,0.17,66039.0,66032.0,0.0758]
[1729710488728,0.075797,66035.0,66034.0,0.17]
[1729710490030,0.075797,66035.0,66032.0,0.0758]
[1729710490031,0.17,66039.0,66032.0,0.0758]
[1729710490237,0.17,66036.0,66029.0,0.14059942]
[1729710490430,0.17,66036.0,66029.0,0.38640142]
[1729710490431,0.075801,66031.0,66029.0,0.38640142]
[1729710490626,0.075801,66031.0,66030.0,0.075802]
[1729710491335,0.17,66036.0,66030.0,0.17]
[1729710491531,0.075801,66031.0,66030.0,0.17]
[1729710492033,0.075801,66031.0,66030.0,0.245802]
[1729710492634,0.2249,66043.0,66030.0,0.17]
[1729710492825,0.07579,66041.0,66040.0,0.17]
[1729710493138,0.07579,66041.0,66040.0,0.245791]
[1729710495331,0.07579,66041.0,66040.0,0.27363794]
[1729710496545,0.07805075,66050.0,66049.0,0.07578]
[1729710496835,0.00227175,66050.0,66049.0,0.24578]
[1729710497139,0.111,66059.0,66053.0,0.075775]
[1729710497140,0.075774,66055.0,66053.0,0.075775]
[1729710497332,0.111,66059.0,66054.0,0.17]
[1729710497528,0.07577,66058.0,66057.0,0.075771]
[1729710497932,0.07577,66058.0,66057.0,0.245771]
[1729710498132,0.17,66069.0,66057.0,0.17]
[1729710498336,0.02700566,66068.0,66064.0,0.0595304]
[1729710498537,0.02700566,66068.0,66067.0,0.05952675]
[1729710498838,0.27276466,66068.0,66067.0,0.05952675]
[1729710499038,0.245759,66068.0,66067.0,0.05952675]
[1729710499434,0.245759,66068.0,66066.0,0.05952675]
[1729710499636,0.07576,66067.0,66066.0,0.05952675]
[1729710499842,0.07576,66067.0,66066.0,0.05950603]
[1729710500038,0.07576,66067.0,66064.0,0.05950603]
[1729710500039,0.075762,66065.0,66064.0,0.05950603]
[1729710500243,0.075762,66065.0,66053.0,0.075776]
[1729710500244,0.075765,66062.0,66059.0,0.05950603]
[1729710500439,0.245768,66060.0,66059.0,0.05952352]
[1729710500633,0.075769,66059.0,66058.0,0.05952352]
[1729710500943,0.362969,66059.0,66058.0,0.05952352]
[1729710501336,0.362969,66059.0,66044.0,0.17]
[1729710501337,0.74136,66059.0,66055.0,0.05952352]
[1729710501541,0.74136,66059.0,66047.0,0.075782]
[1729710501542,0.075775,66054.0,66053.0,0.05952352]
[1729710501732,0.17,66054.0,66051.0,0.05952352]
[1729710501928,0.17,66052.0,66048.0,0.05952352]
[1729710502133,0.075787,66046.0,66045.0,0.075785]
[1729710503332,0.17,66048.0,66042.0,0.07438253]
[1729710503639,0.17,66044.0,66041.0,0.07438253]
[1729710503843,0.17,66048.0,66031.0,0.2917]
[1729710503844,0.075792,66039.0,66038.0,0.07438253]
[1729710504041,0.17,66039.0,66037.0,0.07438253]
[1729710504344,0.075795,66036.0,66035.0,0.00227109]
[1729710504544,0.14221863,66036.0,66035.0,0.00227109]
[1729710505946,0.18876586,66036.0,66035.0,0.07806709]
[1729710506142,0.06642363,66036.0,66035.0,0.07806709]
[1729710506333,0.075793,66039.0,66035.0,0.00227109]
[1729710506334,0.06642363,66038.0,66035.0,0.00227109]
[1729710506539,0.06642363,66037.0,66036.0,0.075795]
[1729710506744,0.06642363,66038.0,66037.0,0.075794]
[1729710506948,0.06642749,66038.0,66037.0,0.075794]
[1729710508547,0.14222049,66038.0,66037.0,0.075794]
[1729710509143,0.06642749,66038.0,66037.0,0.075794]
[1729710509450,0.14222049,66038.0,66037.0,0.075794]
[1729710510447,0.14222049,66038.0,66037.0,0.10343283]
[1729710512347,0.075793,66038.0,66037.0,0.21576763]
[1729710514457,0.075793,66038.0,66037.0,0.29032008]
[1729710514661,0.075793,66038.0,66037.0,0.21576763]
[1729710517053,0.075793,66038.0,66037.0,0.13997363]
[1729710517569,0.075793,66038.0,66037.0,0.21457476]
[1729710517853,0.075793,66038.0,66037.0,0.2146581]
[1729710518053,0.075793,66038.0,66037.0,0.02763883]
[1729710518258,0.17,66040.0,66036.0,0.07460113]
[1729710518458,0.075794,66037.0,66036.0,0.075794]
[1729710518757,0.075794,66037.0,66036.0,0.35820756]
[1729710519559,0.075794,66037.0,66036.0,0.18820756]
[1729710522062,0.075794,66037.0,66036.0,0.18817997]
[1729710526363,0.075794,66037.0,66036.0,0.075794]
[1729710526364,0.14221696,66037.0,66036.0,0.075794]
[1729710528760,0.18876111,66037.0,66036.0,0.075794]
[1729710529367,0.35876111,66037.0,66036.0,0.075794]
[1729710529664,0.35876111,66037.0,66035.0,0.02961422]
[1729710529872,0.075811,66023.0,66022.0,0.075809]
[1729710530161,0.14223396,66023.0,66022.0,0.245809]
[1729710530565,0.18878088,66023.0,66022.0,0.245809]
[1729710530768,0.11297188,66023.0,66022.0,0.245809]
[1729710530958,0.11297188,66023.0,66022.0,0.245811]
[1729710531159,0.03713256,66023.0,66022.0,0.245811]
[1729710531362,0.11297188,66023.0,66022.0,0.245811]
[1729710531559,0.07583932,66023.0,66022.0,0.245811]
[1729710531765,0.15035835,66027.0,66026.0,0.075807]
[1729710532067,0.33914767,66027.0,66026.0,0.245807]
[1729710532266,0.18878932,66027.0,66026.0,0.245807]
[1729710533667,0.32519798,66027.0,66026.0,0.245807]
[1729710533867,0.18878932,66027.0,66026.0,0.245807]
[1729710534070,0.18878932,66027.0,66026.0,0.075807]
[1729710534271,0.32519798,66027.0,66026.0,0.075807]
[1729710534569,0.32519798,66027.0,66026.0,0.18766471]
[1729710534570,0.075806,66027.0,66026.0,0.18766471]
[1729710537769,0.075802,66030.0,66029.0,0.075802]
[1729710537976,0.075802,66030.0,66029.0,0.18765971]
[1729710538473,0.15035835,66033.0,66032.0,0.0758]
[1729710538664,0.075796,66036.0,66035.0,0.075796]
[1729710538973,0.075792,66039.0,66038.0,0.075792]
[1729710539283,0.1103,66047.0,66042.0,0.075787]
[1729710539465,0.17,66046.0,66043.0,0.07473185]
[1729710539669,0.075784,66046.0,66045.0,0.075785]
[1729710539869,0.075781,66049.0,66048.0,0.075781]
[1729710540172,0.2227,66052.0,66051.0,0.075778]
[1729710540370,0.298477,66052.0,66051.0,0.075778]
[1729710540575,0.298477,66052.0,66051.0,0.245778]
[1729710540576,0.075777,66052.0,66051.0,0.245778]
[1729710540769,0.075777,66052.0,66051.0,0.075778]
[1729710540971,0.07804764,66053.0,66052.0,0.075777]
[1729710541469,0.1910013,66053.0,66052.0,0.075777]
[1729710542869,0.06868729,66053.0,66052.0,0.075777]
[1729710543577,0.06641565,66053.0,66052.0,0.075777]
[1729710544977,0.06641565,66053.0,66052.0,0.10329243]
[1729710544978,0.14219165,66053.0,66052.0,0.10329243]
[1729710545179,0.14219165,66053.0,66044.0,0.075785]
[1729710545180,0.06641565,66053.0,66044.0,0.075785]
[1729710545377,0.245785,66045.0,66044.0,0.02752636]
[1729710545578,0.31220065,66045.0,66044.0,0.02752636]
[1729710546074,0.07579,66041.0,66040.0,0.07579]
[1729710546386,0.14220565,66041.0,66040.0,0.07579]
[1729710546779,0.06641565,66041.0,66040.0,0.07579]
[1729710546972,0.06641565,66042.0,66040.0,0.07579]
[1729710547181,0.06641565,66041.0,66040.0,0.07579]
[1729710547379,0.14220565,66041.0,66040.0,0.07579]
[1729710549083,0.06641619,66041.0,66037.0,0.17]
[1729710549378,0.06641619,66040.0,66037.0,0.17]
[1729710549583,0.075792,66040.0,66036.0,0.10176111]
[1729710549881,0.075794,66037.0,66036.0,0.16252626]
[1729710550285,0.17,66038.0,66033.0,0.00227141]
[1729710550580,0.245798,66034.0,66033.0,0.00227141]
[1729710553784,0.27268837,66034.0,66033.0,0.00227141]
[1729710556186,0.27268837,66034.0,66025.0,0.02753777]
[1729710556187,0.075807,66026.0,66025.0,0.02753777]
[1729710556487,0.07581,66023.0,66022.0,0.075811]
[1729710556883,0.075812,66021.0,66020.0,0.17]
[1729710557184,0.075815,66019.0,66018.0,0.075815]
[1729710557573,0.075816,66018.0,66017.0,0.2902]
[1729710558481,0.075816,66018.0,66014.0,0.138]
[1729710558482,0.17,66019.0,66014.0,0.17]
[1729710558679,0.075819,66015.0,66014.0,0.17]
[1729710559279,0.075819,66015.0,66011.0,0.075824]
[1729710559280,0.075819,66015.0,66011.0,0.17]
[1729710559486,0.075825,66010.0,66009.0,0.1116]
[1729710559884,0.075825,66010.0,66009.0,0.13957285]
[1729710562681,0.075825,66010.0,66009.0,0.02797285]
[1729710562885,0.075824,66011.0,66005.0,0.245831]
[1729710563081,0.075829,66007.0,66006.0,0.07583]
[1729710564582,0.075815,66019.0,66006.0,0.24869209]
[1729710564787,0.245819,66015.0,66014.0,0.08938815]
[1729710564977,0.245819,66015.0,66014.0,0.1134564]
[1729710565184,0.245819,66015.0,66014.0,0.20283189]
[1729710565693,0.245819,66015.0,66014.0,0.1134564]
[1729710568491,0.19268744,66015.0,66014.0,0.1134564]
[1729710570002,0.17,66022.0,66014.0,0.1134564]
[1729710570182,0.17,66068.0,66005.0,0.02776933]
[1729710570183,0.17,66028.0,66019.0,0.24442866]
[1729710570493,0.075814,66020.0,66019.0,0.075815]
[1729710570690,0.075814,66020.0,66019.0,0.18720108]
[1729710572691,0.075814,66020.0,66019.0,0.1872615]
[1729710573087,0.075814,66020.0,66019.0,0.27663699]
[1729710573291,0.075814,66020.0,66019.0,0.1872615]
[1729710574187,0.075814,66020.0,66019.0,0.32015444]
[1729710576589,0.17,66022.0,66019.0,0.32015444]
[1729710576794,0.17,66022.0,66020.0,0.24433944]
[1729710576993,0.245811,66022.0,66021.0,0.24433944]
[1729710577384,0.075811,66022.0,66021.0,0.32015144]
[1729710578396,0.075811,66022.0,66021.0,0.24433944]
[1729710579600,0.075811,66022.0,66019.0,0.075814]
[1729710579601,0.17,66023.0,66017.0,0.10413555]
[1729710579794,0.03020358,66029.0,66016.0,0.00104]
[1729710579795,0.075817,66017.0,66016.0,0.00104]
[1729710580096,0.17,66017.0,66008.0,0.13788]
[1729710580393,0.17,66013.0,66007.0,0.17]
[1729710580598,0.075825,66010.0,66009.0,0.075825]
[1729710584297,0.075826,66010.0,66009.0,0.075826]
[1729710586697,0.17,66013.0,66009.0,0.59326391]
[1729710586901,0.17,66013.0,66010.0,0.47424985]
[1729710587195,0.075823,66012.0,66011.0,0.39842585]
[1729710589518,0.075823,66012.0,66011.0,0.47424985]
[1729710591191,0.075823,66012.0,66011.0,0.39842585]
[1729710593501,0.245823,66012.0,66011.0,0.39842585]
[1729710593726,0.245823,66012.0,66011.0,0.50322357]
[1729710593907,0.245823,66012.0,66011.0,0.34902654]
[1729710594107,0.245823,66012.0,66011.0,0.24422882]
[1729710594612,0.15473837,66012.0,66011.0,0.24422882]
[1729710594813,0.23056137,66012.0,66011.0,0.24422882]
[1729710596707,0.23056137,66012.0,66009.0,0.10479772]
[1729710596904,0.075824,66011.0,66010.0,0.24263867]
[1729710598614,0.15473837,66012.0,66010.0,0.24263867]
[1729710598818,0.15473837,66012.0,65999.0,0.17]
[1729710598819,0.075825,66010.0,66007.0,0.10479772]
[1729710598999,0.075826,66009.0,66008.0,0.2420614]
[1729710599204,0.075826,66009.0,66008.0,0.1104314]
[1729710600410,0.185826,66009.0,66008.0,0.1104314]
[1729710600607,0.075826,66009.0,66008.0,0.35253315]
[1729710601611,0.075826,66009.0,66008.0,0.185827]
[1729710602116,0.075826,66009.0,66008.0,0.295827]
[1729710602414,0.075826,66009.0,66008.0,0.30570661]
[1729710602614,0.075823,66013.0,66012.0,0.075819]
[1729710602806,0.075823,66013.0,66012.0,0.245819]
[1729710603404,0.075818,66016.0,66015.0,0.075818]
[1729710603605,0.02764946,66024.0,66015.0,0.17]
[1729710603807,0.075809,66024.0,66023.0,0.24581]
[1729710604007,0.00227247,66028.0,66027.0,0.075806]
[1729710604210,0.00227247,66028.0,66027.0,0.245806]
[1729710604508,0.00227247,66028.0,66027.0,0.43951835]
[1729710604706,0.114,66047.0,66027.0,0.43951835]
[1729710604707,0.075792,66040.0,66039.0,0.075792]
[1729710604920,0.075792,66040.0,66039.0,0.245792]
[1729710605116,0.114,66047.0,66039.0,0.245792]
[1729710605117,0.114,66047.0,66039.0,0.17]
[1729710605313,0.114,66047.0,66033.0,0.17]
[1729710605314,0.075787,66044.0,66043.0,0.075787]
[1729710605820,0.075787,66044.0,66043.0,0.245787]
[1729710607315,0.075782,66048.0,66047.0,0.075782]
[1729710607514,0.075782,66048.0,66047.0,0.245782]
[1729710607708,0.2143,66055.0,66047.0,0.245782]
[1729710607709,0.075778,66052.0,66051.0,0.075776]
[1729710607909,0.00227167,66056.0,66051.0,0.075776]
[1729710607910,0.00227167,66056.0,66051.0,0.34]
[1729710608106,0.07804367,66056.0,66055.0,0.075773]
[1729710608504,0.00227167,66056.0,66055.0,0.075773]
[1729710609416,0.00076,66081.0,66053.0,0.34]
[1729710609417,0.17,66073.0,66053.0,0.34]
[1729710609630,0.075764,66063.0,66062.0,0.17]
[1729710609923,0.075764,66063.0,66049.0,0.05978946]
[1729710609924,0.17,66063.0,66055.0,0.17]
[1729710610220,0.075771,66057.0,66056.0,0.13768]
[1729710610606,0.075772,66056.0,66055.0,0.30764]
[1729710611227,0.075772,66056.0,66055.0,0.17]
[1729710615221,0.17,66057.0,66044.0,0.075786]
[1729710615413,0.17,66057.0,66043.0,0.13764]
[1729710615414,0.17,66051.0,66043.0,0.13764]
[1729710615718,0.17,66051.0,66043.0,0.16500038]
[1729710615915,0.075786,66045.0,66043.0,0.02736038]
[1729710616116,0.075786,66045.0,66044.0,0.17]
[1729710616317,0.17,66051.0,66044.0,0.17]
[1729710616531,0.17,66055.0,66044.0,0.17]
[1729710616721,0.075786,66045.0,66044.0,0.17]
[1729710616917,0.02928644,66045.0,66041.0,0.30764]
[1729710617122,0.075773,66056.0,66041.0,0.30764]
[1729710617123,0.075788,66042.0,66041.0,0.17]
[1729710617428,0.075791,66040.0,66039.0,0.07806314]
[1729710617618,0.10507744,66040.0,66039.0,0.24806314]
[1729710618026,0.14220779,66040.0,66039.0,0.17227114]
[1729710618320,0.14220823,66040.0,66039.0,0.00227114]
[1729710618912,0.1887542,66040.0,66039.0,0.00227114]
[1729710619113,0.3028542,66040.0,66039.0,0.00159546]
[1729710619329,0.3028542,66040.0,66022.0,0.17]
[1729710619330,1.41667017,66040.0,66022.0,0.17]
[1729710619518,0.17,66026.0,66018.0,0.17227193]
[1729710619718,0.17,66021.0,66018.0,0.00227193]
[1729710620028,0.02928644,66020.0,66019.0,0.075815]
[1729710620214,0.02929754,66020.0,66019.0,0.245815]
[1729710620421,0.075802,66031.0,66019.0,0.245815]
[1729710620622,0.11294207,66030.0,66029.0,0.17]
[1729710621324,0.11294207,66030.0,66029.0,0.245803]
[1729710621723,0.03714007,66030.0,66029.0,0.245803]
[1729710622021,0.27622533,66040.0,66034.0,0.075798]
[1729710622022,0.075796,66035.0,66034.0,0.075798]
[1729710622222,0.11293192,66035.0,66034.0,0.075798]
[1729710622619,0.0758,66032.0,66029.0,0.17]
[1729710623129,0.0758,66032.0,66031.0,0.075801]
[1729710625629,0.075792,66039.0,66038.0,0.075793]
[1729710626726,0.075795,66036.0,66035.0,0.245796]
[1729710626918,0.075795,66036.0,66035.0,0.075796]
[1729710627322,0.075791,66040.0,66039.0,0.075791]
[1729710627531,0.075791,66040.0,66039.0,0.230791]
[1729710629432,0.075791,66040.0,66039.0,0.060791]
[1729710629635,0.245791,66040.0,66039.0,0.060791]
[1729710630226,0.17,66040.0,66038.0,0.04457451]
[1729710630432,0.17,66040.0,66037.0,0.04457451]
[1729710630633,0.075793,66038.0,66037.0,0.04457451]
[1729710631333,0.075798,66034.0,66033.0,0.075799]
[1729710631528,0.17,66040.0,66032.0,0.17]
[1729710631727,0.075796,66036.0,66035.0,0.1353468]
[1729710631929,0.075796,66036.0,66035.0,0.075796]
[1729710633631,0.075799,66033.0,66032.0,0.245799]
[1729710639746,0.03785986,66033.0,66032.0,0.245799]
[1729710640155,0.03785986,66033.0,66032.0,0.29046244]
[1729710641153,0.03785986,66033.0,66032.0,0.245799]
[1729710641352,0.03785986,66033.0,66032.0,0.17]
[1729710641552,0.20785986,66033.0,66032.0,0.04474281]
[1729710641747,0.17,66033.0,66032.0,0.04474281]
[1729710641948,0.075803,66029.0,66027.0,0.04474281]
[1729710642157,0.17,66033.0,66026.0,0.075806]
[1729710642359,0.17,66033.0,66029.0,0.0447778]
[1729710642656,0.075806,66027.0,66026.0,0.075806]
[1729710643460,0.075806,66027.0,66025.0,0.04479802]
[1729710643753,0.2756,66026.0,66024.0,0.04479802]
[1729710643951,0.075808,66025.0,66024.0,0.04479802]
[1729710644259,0.075809,66024.0,66023.0,0.07581]
[1729710644454,0.075812,66021.0,66020.0,0.1353628]
[1729710644660,0.075812,66021.0,66020.0,0.0595508]
[1729710644955,0.075814,66020.0,66019.0,0.00227191]
[1729710645151,0.180114,66020.0,66019.0,0.00227191]
[1729710645348,0.180114,66020.0,66019.0,0.04711571]
[1729710645647,0.180114,66020.0,66019.0,0.00227191]
[1729710646056,0.4544,66019.0,66010.0,0.0595508]
[1729710646246,0.4544,66019.0,66007.0,0.0595508]
[1729710646247,0.075827,66008.0,66007.0,0.0595508]
[1729710646446,0.075827,66008.0,65997.0,0.24458]
[1729710646447,0.245827,66008.0,66004.0,0.0595508]
[1729710646758,0.075832,66004.0,66003.0,0.0595508]
[1729710646953,0.17,66004.0,66001.0,0.07473683]
[1729710647258,0.075837,66000.0,65999.0,0.07473683]
[1729710647565,0.245837,66000.0,65999.0,0.18572167]
[1729710647753,0.075838,65999.0,65998.0,0.00227264]
[1729710648049,0.075838,65999.0,65993.0,0.00092]
[1729710648050,0.075844,65994.0,65993.0,0.00092]
[1729710648248,0.415844,65994.0,65993.0,0.00092]
[1729710648452,0.075854,65985.0,65984.0,0.05978186]
[1729710648852,0.075855,65984.0,65983.0,0.05978186]
[1729710649050,0.075855,65984.0,65983.0,0.30563786]
[1729710649252,0.075855,65984.0,65983.0,0.245856]
[1729710650858,0.075856,65984.0,65981.0,0.075857]
[1729710651056,0.075856,65984.0,65982.0,0.17]
[1729710651357,0.075856,65983.0,65982.0,0.17]
[1729710653958,0.075852,65987.0,65981.0,0.05978186]
[1729710654161,0.075858,65981.0,65979.0,0.17]
[1729710654455,0.07586,65980.0,65979.0,0.17]
[1729710655061,0.07586,65980.0,65979.0,0.245861]
[1729710655453,0.07586,65980.0,65979.0,0.17]
[1729710655654,0.07586,65980.0,65979.0,0.22944756]
[1729710655956,0.07586,65980.0,65974.0,0.00227345]
[1729710655957,0.075865,65975.0,65974.0,0.00227345]
[1729710656755,0.075865,65975.0,65974.0,0.17227345]
[1729710657655,0.255865,65975.0,65974.0,0.00227345]
[1729710658058,0.1031956,65975.0,65974.0,0.00227345]
[1729710660260,0.075869,65972.0,65971.0,0.17]
[1729710660466,0.075869,65972.0,65971.0,0.24587]
[1729710660857,0.075869,65972.0,65971.0,0.17]
[1729710661557,0.0273306,65975.0,65971.0,0.17]
[1729710661863,0.075869,65972.0,65971.0,0.07587]
[1729710662156,0.075854,65985.0,65975.0,0.075865]
[1729710662157,0.075865,65976.0,65975.0,0.075865]
[1729710662357,0.075869,65972.0,65971.0,0.07587]
[1729710662859,0.075857,65983.0,65968.0,0.05946549]
[1729710663059,0.02774083,65985.0,65982.0,0.17]
[1729710663358,0.075856,65983.0,65982.0,0.17]
[1729710663564,0.07586,65980.0,65979.0,0.17]
[1729710664061,0.075858,65984.0,65983.0,0.075856]
[1729710664367,0.075858,65984.0,65983.0,0.245856]
[1729710667868,0.075852,65988.0,65987.0,0.07585]
[1729710668062,0.075846,65993.0,65992.0,0.075845]
[1729710668261,0.075841,65997.0,65996.0,0.07584]
[1729710668460,0.075841,65997.0,65996.0,0.24584]
[1729710669060,0.17,65997.0,65984.0,0.10904]
[1729710669356,0.075854,65986.0,65985.0,0.075852]
[1729710669556,0.075854,65986.0,65985.0,0.245852]
[1729710671467,0.075849,65990.0,65989.0,0.075846]
[1729710671662,0.075849,65990.0,65989.0,0.245846]
[1729710672566,0.075839,65999.0,65993.0,0.075844]
[1729710672567,0.17,65999.0,65993.0,0.075844]
[1729710672872,0.19671069,65999.0,65994.0,0.17]
[1729710673168,0.075842,65995.0,65994.0,0.17]
[1729710673368,0.00227346,66003.0,65994.0,0.17]
[1729710673569,0.07810646,66003.0,66002.0,0.245834]
[1729710673769,0.00227346,66003.0,66002.0,0.245834]
[1729710674969,0.07810646,66003.0,66002.0,0.245834]
[1729710675171,0.07810646,66003.0,65999.0,0.17]
[1729710675375,0.075837,66000.0,65999.0,0.245837]
[1729710677069,0.075837,66000.0,65999.0,0.17]
[1729710677271,0.075838,65999.0,65998.0,0.188439]
[1729710677472,0.075838,65999.0,65998.0,0.358439]
[1729710677669,0.075838,65999.0,65998.0,0.188439]
[1729710683675,0.075838,65999.0,65995.0,0.02748888]
[1729710683878,0.075838,65999.0,65990.0,0.24866]
[1729710683879,0.075841,65996.0,65990.0,0.24866]
[1729710684068,0.075847,65991.0,65990.0,0.213208]
[1729710684483,0.075847,65991.0,65990.0,0.24006234]
[1729710684484,0.10515734,65991.0,65990.0,0.24006234]
[1729710684774,0.10515734,65991.0,65990.0,0.02685434]
[1729710684973,0.10515734,65991.0,65982.0,0.17]
[1729710684974,0.10515734,65991.0,65983.0,0.075856]
[1729710685170,0.17,65985.0,65979.0,0.17]
[1729710685371,0.07586,65981.0,65980.0,0.075859]
[1729710685572,0.10517034,65981.0,65980.0,0.075859]
[1729710688179,0.02931034,65981.0,65980.0,0.075859]
[1729710688380,0.02931034,65983.0,65979.0,0.075861]
[1729710688578,0.075855,65984.0,65981.0,0.075858]
[1729710688579,0.02931034,65982.0,65981.0,0.075858]
[1729710688779,0.075855,65984.0,65978.0,0.3066151]
[1729710688780,0.02931481,65983.0,65978.0,0.3066151]
[1729710689085,0.02931482,65983.0,65982.0,0.075857]
[1729710689687,0.10517082,65983.0,65982.0,0.075857]
[1729710689982,0.10517082,65983.0,65982.0,0.245857]
[1729710691293,0.14233465,65983.0,65982.0,0.245857]
[1729710692580,0.075856,65983.0,65982.0,0.31850258]
[1729710693477,0.075856,65983.0,65982.0,0.31662886]
[1729710694788,0.075853,65986.0,65985.0,0.075853]
[1729710695087,0.075853,65986.0,65985.0,0.1856961]
[1729710695286,0.21204915,65989.0,65988.0,0.07585]
[1729710695489,0.21120915,65989.0,65988.0,0.3556931]
[1729710695685,0.21120915,65989.0,65988.0,0.48643486]
[1729710696785,0.13535915,65989.0,65988.0,0.48643486]
[1729710696992,0.13535915,65989.0,65988.0,0.48640405]
[1729710697997,0.075836,66001.0,65994.0,0.075844]
[1729710698184,0.02793385,66006.0,65994.0,0.48639805]
[1729710698391,0.24178097,66000.0,65994.0,0.31639805]
[1729710698591,0.24178097,66000.0,65994.0,0.182044]
[1729710698886,0.24178097,66000.0,65994.0,0.42345546]
[1729710699084,0.16594397,66000.0,65994.0,0.57579259]
[1729710699285,0.16594397,66000.0,65994.0,0.57576512]